Cogmind - Beta 13 @@@ ROGUE MODE // 2024.05.27 @ 16:54:35 Player: Ragemodebzrk Result: Destroyed by G-47 Trooper with Particle Gun Performance ------------- Evolutions (2) 1000 Regions Visited (5) 1000 Robots Destroyed (56) 280 Value Destroyed (1438) 1438 Prototype IDs (2) 40 Alien Tech Used (0) 0 Bonus (-37) -37 TOTAL SCORE: 3721 Bonus ------- High Alert Combat Kills 19 Follower Combat Kills 41 Friendly Fire -97 Cogmind --------- Core Integrity 0/550 Matter 202/300 Energy 37/100 System Corruption 0% Temperature Cool (80) Movement Treading (145) Location -8/Materials Parts ------- > --- POWER (2) -------- (None) > --- PROPULSION (4) --- Advanced Treads Advanced Treads > --- UTILITY (3) ------ Visual Processing Unit Hacking Suite > --- WEAPON (2) ------- Katana > --- INVENTORY (5) ---- Improved Signal Interpreter Beam Rifle Particle Cannon Datajack Peak State ------------ > --- POWER ------------ Improved Ion Engine > --- PROPULSION ------- Advanced Treads Advanced Treads Advanced Treads Advanced Treads > --- UTILITY ---------- Visual Processing Unit Light Armor Plating Hacking Suite > --- WEAPON ----------- Beam Rifle Katana > --- INVENTORY -------- Improved Signal Interpreter Datajack [Rating: 25] Favorites ----------- Power Ion Engine Engine Ion Engine Propulsion Armored Wheel Treads Light Treads Leg Aluminum Leg Wheel Armored Wheel Utility Small Storage Unit Device Seismic Detector Storage Small Storage Unit Processor Transport Network Coupler Hackware Hacking Suite Protection Light Armor Plating Weapon Assault Rifle Energy Gun EM Pulse Gun Energy Cannon Particle Cannon Ballistic Gun Assault Rifle Launcher Grenade Launcher Slashing Weapon Katana Special Melee Weapon Datajack Build | -11 -10 -10 -9 -9 -8 ------- Run | Yrd Mat Min Mat Min Mat Slots Evolved 4 | . . . 2 . 2 Power 1 | . . . 1 . . Propulsion 2 | . . . . . 2 Utility 1 | . . . 1 . . Weapon . | . . . . . . Parts Attached 62 | 6 18 . 15 1 22 Power 8 | 1 4 . 2 . 1 Engine 8 | 1 4 . 2 . 1 Core . | . . . . . . Reactor . | . . . . . . Propulsion 23 | 2 4 . 6 . 11 Treads 7 | 2 . . . . 5 Leg 8 | . . . 4 . 4 Wheel 8 | . 4 . 2 . 2 Hover . | . . . . . . Flight . | . . . . . . Utility 9 | 1 3 . 3 . 2 Device 3 | . 2 . 1 . . Storage 1 | 1 . . . . . Processor 2 | . 1 . 1 . . Hackware 1 | . . . . . 1 Protection 2 | . . . 1 . 1 Artifact . | . . . . . . Weapon 22 | 2 7 . 4 1 8 Energy Gun 7 | . 3 . 3 . 1 Energy Cannon 2 | . . . . . 2 Ballistic Gun 5 | 2 1 . 1 . 1 Ballistic Cannon . | . . . . . . Launcher 5 | . 2 . . 1 2 Special Weapon . | . . . . . . Impact Weapon . | . . . . . . Slashing Weapon 2 | . . . . . 2 Piercing Weapon . | . . . . . . Special Melee Weapon 1 | . 1 . . . . Unidentified Prototypes . | . . . . . . Parts Lost 19 | . 2 . 3 . 14 Power 3 | . . . . . 3 Propulsion 7 | . 1 . . . 6 Utility 2 | . . . 1 . 1 Weapon 7 | . 1 . 2 . 4 Highest Loss Streak 9 | . 2 . 2 . 9 To Critical Strikes . | . . . . . . Average Slot Usage (%) 91 | . 95 100 90 100 79 Engine 14 | . 13 14 17 22 10 Treads 8 | . 16 . . . 9 Leg 4 | . . . 16 . 4 Wheel 12 | . 10 28 5 22 12 Device 4 | . 10 . 2 . . Storage 7 | . 14 14 4 . . Processor 10 | . . 14 19 22 12 Hackware 1 | . . . . . 8 Protection 3 | . . . 6 11 5 Energy Gun 6 | . 5 . 9 11 5 Ballistic Gun 8 | . 18 . 2 9 1 Launcher 3 | . . 28 6 1 1 Special Melee Weapon 1 | . 2 . . . . Naked Turns . | . . . . . . Heaviest Build 22 | 14 16 16 21 22 22 Greatest Support 88 | 40 40 20 24 24 88 Greatest Overweight (x) 4 | . 1 . . . 4 Average Overweight (x) . | . . . . . . Largest Inventory Capacity 8 | 8 8 8 8 5 5 Average Capacity 6 | 7 8 8 6 5 5 Most Carried 8 | 4 8 4 5 4 5 Average Carried 2 | 1 2 4 2 3 2 Final Capacity 8 | 8 8 8 5 5 5 Final Carried 4 | 1 4 4 3 4 4 Class Distribution -------------------- 55% | Scavenger-Mutant 44% | Mutant Dominant Class ---------------- Mutant | -10/Materials Scavenger-Mutant | -10/Mines Scavenger-Mutant | -9/Materials Scavenger-Mutant | -9/Mines Scavenger-Mutant | -8/Materials Resources | -11 -10 -10 -9 -9 -8 ----------- Run | Yrd Mat Min Mat Min Mat Matter Collected 1155 | 229 366 . 312 28 220 Remotely . | . . . . . . Salvage Created 1671 | . 487 . 644 64 476 Parts 109 | . 40 . 39 7 23 Haulers Intercepted 1 | . 1 . . . . Recyclers Shooed 4 | . 1 1 2 . . Parts Field Recycled . | . . . . . . Retrieved Matter . | . . . . . . Parts Self-Destructed . | . . . . . . Prevented . | . . . . . . Kills | -11 -10 -10 -9 -9 -8 ------- Run | Yrd Mat Min Mat Min Mat Combat Hostiles Destroyed 42 | . 11 . 18 4 9 Melee 5 | . . . . . 5 Guns 21 | . 9 . 7 4 1 Cannons 1 | . . . . . 1 AOE 15 | . 2 . 11 . 2 Classes Destroyed 10 | . 5 . 2 . 3 Worker 2 | . 1 . 1 . . Builder 1 | . . . . . 1 Hauler 1 | . 1 . . . . Recycler 4 | . . . 4 . . Watcher 5 | . 2 . 1 . 2 Swarmer 15 | . 3 . 8 4 . Grunt 22 | . 8 . 8 . 6 Sentry 4 | . . . 2 . 2 Hunter 1 | . . . . . 1 Zionite 1 | . . . . . 1 Best Kill Streak 8 | . 5 . 8 3 4 Combat Bots Only 5 | . 3 . 5 3 3 Max Kills in Single Turn 4 | . 2 . 4 1 2 Gunslinging . | . . . . . . Exploded 3 | . 2 . 3 . 1 Melee 1 | . . . . . 1 Uniques/NPCs Destroyed . | . . . . . . Combat | -11 -10 -10 -9 -9 -8 -------- Run | Yrd Mat Min Mat Min Mat Hostile Shots Fired 341 | . 98 . 42 8 193 Missed 89 | . 23 . 16 2 48 Damage Taken 3547 | . 744 5 433 51 2314 Core 798 | . 146 . 99 . 553 Absorbed by Shields . | . . . . . . Core Remaining (%) 72 | 100 . 41 . 75 . Volleys Fired 120 | . 50 1 25 7 37 Largest 2 | . 2 2 2 2 2 Hottest 136 | . 80 60 80 79 136 Shots Fired 196 | . 84 2 40 13 57 Gun 154 | . 84 . 24 13 33 Cannon 18 | . . . . . 18 Launcher 24 | . . 2 16 . 6 Special . | . . . . . . Kinetic 79 | . 65 . . 6 8 Thermal 51 | . 1 . . 7 43 Explosive 24 | . . 2 16 . 6 Electromagnetic 42 | . 18 . 24 . . Robot Hit Streak 14 | . 14 . 5 3 7 Robot Miss Streak 3 | . 3 . 3 1 3 Penetration Max 1 | . . . . . 1 Secondary Targets 1 | . . . 1 . . Max Gunslinging Chain 1 | . . . 1 . . Shots Hit Robots 132 | . 59 . 21 6 46 Core Hits 87 | . 24 . 33 4 26 Critical Kills 1 | . 1 . . . . Critical Parts Destroyed 1 | . . . . . 1 Critical Strikes 7 | . 2 . . 1 4 Burn 3 | . . . . 1 2 Destroy 2 | . 1 . . . 1 Corrupt 1 | . 1 . . . . Sever 1 | . . . . . 1 Melee Attacks 21 | . 10 . . . 11 Impact . | . . . . . . Slashing 11 | . . . . . 11 Piercing . | . . . . . . Sneak Attacks 3 | . 3 . . . . Combat Hostiles . | . . . . . . Follow-up Attacks . | . . . . . . Damage Inflicted 4045 | . 837 10 1442 83 1673 Guns 1436 | . 783 . 180 83 390 Cannons 268 | . . . . . 268 Explosions 2006 | . 54 . 1262 . 690 Melee 319 | . . . . . 319 Ramming 16 | . . 10 . . 6 Kinetic 800 | . 605 . . 40 155 Thermal 810 | . 54 . 210 43 503 Explosive 1742 | . . . 1052 . 690 Electromagnetic 358 | . 178 . 180 . . Impact . | . . . . . . Slashing 319 | . . . . . 319 Piercing . | . . . . . . Highest Corruption . | . . . . . . Average Corruption . | . . . . . . Corruption Purged . | . . . . . . Corruption Blocked . | . . . . . . Overload Shots . | . . . . . . Overflow Damage 195 | . . . 152 . 43 Projectiles . | . . . . . . Explosions 176 | . . . 152 . 24 Melee 19 | . . . . . 19 Knockbacks . | . . . . . . Impact . | . . . . . . Kinetic . | . . . . . . Secondary . | . . . . . . Self-Inflicted Damage 226 | . . 5 154 . 67 Shots 7 | . . . 4 . 3 Rammed 4 | . . 1 . . 3 Targets Rammed 4 | . . 1 . . 3 Kicked . | . . . . . . Crushed . | . . . . . . Highest Temperature 530 | . 126 . 96 108 530 Average Temperature 95 | . 34 . 38 41 149 Received Heat Transfer 1548 | . 258 . 120 . 1170 Effects 7 | . . . . . 7 Shutdowns 1 | . . . . . 1 Energy Bleed 1 | . . . . . 1 Interference 2 | . . . . . 2 Matter Decay 1 | . . . . . 1 Short Circuit 1 | . . . . . 1 Damage (minor) 1 | . . . . . 1 Siege Activations . | . . . . . . Robots Corrupted . | . . . . . . Combat Hostiles . | . . . . . . Parts Fried 1 | . 1 . . . . Impact Corruptions . | . . . . . . Robots Melted . | . . . . . . Combat Hostiles . | . . . . . . Parts Melted 2 | . . . 1 . 1 Heat Transferred 1706 | . 100 . 200 185 1221 Parts Sabotaged . | . . . . . . Parts Stolen . | . . . . . . Parts Stripped . | . . . . . . Power Chain Reactions 1 | . 1 . . . . Alert | -11 -10 -10 -9 -9 -8 ------- Run | Yrd Mat Min Mat Min Mat Peak Influence 452 | . 207 35 452 227 366 Initial 97 | . . 22 13 97 88 Average 157 | . 54 30 296 184 238 Maximum Alert Level 2 | . 1 . 2 1 1 Low Security (%) 64 | 100 95 100 25 67 34 Level 1 27 | . 4 . 36 32 65 Level 2 8 | . . . 38 . . Level 3 . | . . . . . . Level 4 . | . . . . . . Level 5 . | . . . . . . High Security . | . . . . . . Max Security . | . . . . . . Squads Dispatched 9 | . 3 . 3 . 3 Investigation 4 | . 1 . 2 . 1 Extermination . | . . . . . . Reinforcement 5 | . 2 . 1 . 2 Assault . | . . . . . . Garrison . | . . . . . . Intercept . | . . . . . . Searches Triggered . | . . . . . . Construction Impeded 1 | . . . . . 1 Haulers Reinforced . | . . . . . . Active Scanning Responses . | . . . . . . Cargo Convoy Interrupts . | . . . . . . Stealth | -11 -10 -10 -9 -9 -8 --------- Run | Yrd Mat Min Mat Min Mat Distress Signals 5 | . 1 . . . 4 Communications Jammed . | . . . . . . Distress Signals . | . . . . . . Times Spotted 63 | . 16 . 21 5 21 Peak Tracking Total 7 | . 3 . 5 3 7 Tactical Retreats 2 | . . . . 1 1 Traps | -11 -10 -10 -9 -9 -8 ------- Run | Yrd Mat Min Mat Min Mat Traps Triggered 3 | . 3 . . . . Indirectly . | . . . . . . Trap Hack Attempts . | . . . . . . Triggered . | . . . . . . Disarmed . | . . . . . . Reprogrammed 1 | . . . 1 . . Reused . | . . . . . . Traps Extracted . | . . . . . . Installed . | . . . . . . Triggered . | . . . . . . Machines | -11 -10 -10 -9 -9 -8 ---------- Run | Yrd Mat Min Mat Min Mat Machines Disabled 8 | . 2 . 5 . 1 Max in Single Turn 3 | . 1 . 3 . 1 Machines Repaired . | . . . . . . Machines Dismantled . | . . . . . . Machines Sabotaged . | . . . . . . Overloaded Fab Kills . | . . . . . . Hacking | -11 -10 -10 -9 -9 -8 --------- Run | Yrd Mat Min Mat Min Mat Machines Accessed 9 | . 5 . 3 . 1 Terminals 9 | . 5 . 3 . 1 Fabricators . | . . . . . . Repair Stations . | . . . . . . Recycling Units . | . . . . . . Scanalyzers . | . . . . . . Garrison Access . | . . . . . . Total Hacks 25 | . 13 . 10 . 2 Successful 10 | . 5 . 4 . 1 Failed 15 | . 8 . 6 . 1 Catastrophic 3 | . 1 . 1 . 1 Database Lockouts . | . . . . . . Manual . | . . . . . . Terminals 25 | . 13 . 10 . 2 Fabricators . | . . . . . . Repair Stations . | . . . . . . Recycling Units . | . . . . . . Scanalyzers . | . . . . . . Garrison Access . | . . . . . . Terminal Hacks 10 | . 5 . 4 . 1 Prototype ID Bank 1 | . 1 . . . . Emergency Access Points 1 | . 1 . . . . Alert Level 2 | . 1 . . . 1 Unreport Threat 2 | . 1 . 1 . . Locate Traps 1 | . . . 1 . . Reprogram Traps 1 | . . . 1 . . Maintenance Status 1 | . . . 1 . . Hauler Manifests 1 | . 1 . . . . Fabricator Hacks . | . . . . . . Repair Station Hacks . | . . . . . . Recycling Unit Hacks . | . . . . . . Scanalyzer . | . . . . . . Garrison Access Hacks . | . . . . . . Unauthorized Hacks . | . . . . . . Terminals . | . . . . . . Fabricators . | . . . . . . Repair Stations . | . . . . . . Recycling Units . | . . . . . . Scanalyzers . | . . . . . . Garrison Access . | . . . . . . Data Cores Recovered 1 | . . . . . 1 Used . | . . . . . . Hacking Detections 8 | . 4 . 3 . 1 Full Trace Events 6 | . 2 . 3 . 1 Feedback Events . | . . . . . . Feedback Blocked . | . . . . . . Robot Schematics Acquired . | . . . . . . Robots Built . | . . . . . . Authchips . | . . . . . . Time . | . . . . . . Total Robot Build Rating . | . . . . . . Part Schematics Acquired . | . . . . . . Parts Built . | . . . . . . Authchips . | . . . . . . Time . | . . . . . . Total Part Build Rating . | . . . . . . Parts Repaired . | . . . . . . Time . | . . . . . . Parts Recycled . | . . . . . . Recycled Matter . | . . . . . . Retrieved Matter . | . . . . . . Retrieved Components . | . . . . . . Parts Scanalyzed . | . . . . . . Part Schematics Acquired . | . . . . . . Parts Damaged . | . . . . . . Bothacking | -11 -10 -10 -9 -9 -8 ------------ Run | Yrd Mat Min Mat Min Mat Used RIF Installer . | . . . . . . Robots Hacked 3 | . 3 . . . . Non-combat 2 | . 2 . . . . Combat 1 | . 1 . . . . Robot Hacks Applied 4 | . 4 . . . . parse_system 3 | . 3 . . . . no_distress 1 | . 1 . . . . Relay Couplers Released . | . . . . . . Fabnet Peak Effective % . | . . . . . . Robots Rewired . | . . . . . . Allies Hacked . | . . . . . . Hacks Repelled . | . . . . . . Allies | -11 -10 -10 -9 -9 -8 -------- Run | Yrd Mat Min Mat Min Mat Total Allies 2 | . . . . 2 . Largest Group 2 | . . . . 2 2 Highest-Rated Group 43 | . . . . 43 43 Highest-Rated Ally 31 | . . . . 31 31 Total Orders . | . . . . . . Ally Attacks 19 | . . . . . 19 Total Damage 295 | . . . . . 295 Kills 2 | . . . . . 2 Allies Corrupted . | . . . . . . Allies Melted . | . . . . . . Intel | -11 -10 -10 -9 -9 -8 ------- Run | Yrd Mat Min Mat Min Mat Robot Analysis Total . | . . . . . . Derelict Logs Recovered 2 | . . 2 . . . Drone Launches . | . . . . . . Drone Recoveries . | . . . . . . Exploration | -11 -10 -10 -9 -9 -8 ------------- Run | Yrd Mat Min Mat Min Mat Turns Passed 1895 | 97 667 103 416 204 408 Spaces Moved 1228 | 61 382 124 291 188 182 Core 25 | 11 2 . . . 12 Treads 273 | 50 186 . . . 37 Legs 230 | . . . 193 . 37 Wheels 700 | . 194 124 98 188 96 Hover . | . . . . . . Flight . | . . . . . . Fastest Speed 50 | 50 80 80 80 90 50 Average Speed 108 | 140 119 80 107 90 113 Slowest Speed 250 | 160 160 80 120 90 250 Overloaded Moves . | . . . . . . Propulsion Burnouts . | . . . . . . Robots Hopped . | . . . . . . Cave-ins Triggered . | . . . . . . Exploration Rate (%) 34 | 4 64 38 32 47 24 Regions Visited 5 Branch Regions 2 Pre-discovered Areas 1 | . . 1 . . . Known Exits Taken . | . . . . . . Unknown Exits Taken 5 | 1 1 1 1 1 . Scrap Searched . | . . . . . . Spaces Dug . | . . . . . . Terrain Destroyed 124 | . . 22 52 . 50 Melee . | . . . . . . Projectile . | . . . . . . AOE 124 | . . 22 52 . 50 Terrain Rammed . | . . . . . . Walls Destroyed . | . . . . . . Machines Disabled . | . . . . . . Actions | -11 -10 -10 -9 -9 -8 --------- Run | Yrd Mat Min Mat Min Mat Total 1576 | 73 502 125 352 209 315 Wait 58 | . 17 . . 13 28 Move 1223 | 60 381 123 290 187 182 Hop . | . . . . . . Pick Up 61 | 7 19 . 13 1 21 Fast Attach . | . . . . . . Attach 38 | 6 9 . 5 . 18 Detach . | . . . . . . Swap 24 | . 9 . 10 1 4 Drop 27 | . 7 . 9 . 11 Fire 120 | . 50 1 25 7 37 Melee 21 | . 10 . . . 11 Ram 4 | . . 1 . . 3 Kick . | . . . . . . Crush . | . . . . . . Escape Stasis . | . . . . . . Rewire . | . . . . . . Trap . | . . . . . . Miscellaneous . | . . . . . . Route ------- -11/Scrapyard -10/Materials (discovered 4 exits: *Mat x2 / [*Min x2]) -10/Mines -9/Materials -9/Mines -8/Materials History --------- Turn | Location | Event 9 | -11/Scrapyard | Discovered new exit (range 15) 98 | -11/Scrapyard | Entered Materials 309 | -10/Materials | Build established: Mutant 472 | -10/Materials | Discovered new exit (range 3) 563 | -10/Materials | Discovered new exit (range 15) 633 | -10/Materials | Core integrity fell below 50% 681 | -10/Materials | Discovered new exit (range 16) 762 | -10/Materials | Discovered new exit (range 5) 765 | -10/Materials | Entered Mines 831 | -10/Mines | Learned location of Zion (-7) 833 | -10/Mines | Assembled infested the area 858 | -10/Mines | Learned Materials non-interactive machine intel 858 | -10/Mines | Discovered new exit (range 12) 868 | -10/Mines | Entered Materials 868 | -9/Materials | Evolved 2 slots: Power x1, Utility x1 869 | -9/Materials | Loaded intel: 48 non-interactive machine locations 1198 | -9/Materials | Discovered new exit (range 12) 1284 | -9/Materials | Entered Mines 1352 | -9/Mines | Build established: Scavenger-Mutant 1434 | -9/Mines | Received a Rocket Launcher from a helpful Derelict 1482 | -9/Mines | Discovered new exit (range 7) 1488 | -9/Mines | Entered Materials 1488 | -8/Materials | Accompanied by 2 allies 1488 | -8/Materials | Evolved 2 slots: Propulsion x2 1493 | -8/Materials | Led the pair of lost Derelicts to an unsafe place 1647 | -8/Materials | Core integrity fell below 50% 1683 | -8/Materials | Lost 9 parts (2p4n3w) 1891 | -8/Materials | Core integrity fell below 20% 1896 | -8/Materials | Destroyed by G-47 Trooper with Particle Gun Last Messages --------------- H-55 Commando destroyed. W-25 Informer sends out distress signal. Critical hit (Burn: +37). Lgt. Armor Plating destroyed. Critical hit (Burn: +37). Particle Cannon broken. Overheating: Short circuit. Critical hit (Burn: +37). Power failure, Imp. Ion Engine shutdown. Overheating: Matter decay (-53). Imp. Ion Engine destroyed. Overheating: Adv. Treads damaged (-69). Acquired Katana. Particle Cannon destroyed. Destroyed Lgt. Nuclear Core. Adv. Treads destroyed. K-01 Serf collects debris. Adv. Treads destroyed. Critical hit (Burn: +37). G-47 Trooper destroyed. Map ----- +----------------------------------------------------+ | ?????????????????????????????????????????????????? | | ?????????????????????????????????????????????????? | | ?????????????????????????????????????????????????? | | ?????????????????????????????????????????????????? | | ?????????????????????????????????????????????????? | | ?????????????????????????????????????????????????? | | ?#???????????????????????????????????????????????? | | #???????????????????????????????????????????????? | | #???????????????????????????????????????????????? | | #??????????#####????????????????????????????????? | | #??????????# #????????????????????????????????? | | #??????????+ #???????????###??????????????????? | | #??????????# #??????????? #??????????????????? | | ##??????????# +??????????? #??????????????????? | | #??????????# #??????????? #??????????????????? | | #??????????# #?????????? #??????????????????? | | #?########## #?????????? ???????????????????? | | ###[ """ # #?????????? ????????????????????? | | % %+ ""R" # ###########+#############+#??????? | | # ## % "" " # o t ??????? | | ### +% g ??????? | | #### # """" ??????? | | !## """ # """"" == ####+####??????????? | | !## """ # """"" == #??????????????????? | | !## """ # g = = #??????????????????? | | !## # @ #??????????????????? | | !##+######## """T""" %=gg #??????????????????? | | !### #??????###########+###g #??????????????????? | | ##?# #??????????????? ??# #??????????????????? | | ???# ??????????????? = ??# #??????????????????? | | ???# ??????????????# "??# #??????????????????? | | ???# ??????????????# [ "??# !% ?????????????????? | | #### ??????????????# "??# = ???????????????? | | # ?#????????????#* ??# T" ?????????????? | | ### #????????????####???# w """ ???????????? | | #???????????????????# """ "?????????? | | +???????????????????# """??"?????????? | | #??????????????????? ????????????? | | ##+#??????????????????? ????????????? | | ! #?????????????????? ???????????? | | "" #?????????????????? ???????????? | | ""S #?????????????????? ### ?????????????? | | ? "" #?????????????????| ??? ^ ?????????????? | | ? #?????????????????##??? ????????????? | | ? * #?????????????????????? ??????????????? | | ??#####?????????????????????? "?????????????????? | | ????????????????????????????? ??????????????????? | | ?????????????????????????????????????????????????? | | ?????????????????????????????????????????????????? | | ?????????????????????????????????????????????????? | +----------------------------------------------------+ Best States ------------- Heat Dissipation 31 Energy Generation 17 Energy Capacity 415 Matter Stores 300 Matter Capacity 300 Sight Range 18 Terrain Scan Density 10 Armor Coverage 150 Evasion (%) 55 Recoil Reduction 4 Offensive Hacking 10 Item Schematics ----------------- None Robot Schematics ------------------ None Fabricated ------------ Nothing Alien Tech Used ----------------- None Achievements -------------- Backstab Loot Pinata Challenges ------------ None Game ------ Seed CouplerSapperRedirector Manual? 0 Play Time 00:33:46 Cumulative 3.8 hours Start 2024.05.27 @ 16:23:55 End 2024.05.27 @ 16:54:35 Sessions 1 Manual Loads 0 Difficulty Rogue Special Mode None Game No. 7 Rogue 7 Adventurer 0 Explorer 0 Win Type - Total 0 Types 0/0/0/0/0/0/0/0/0 Lore% 9 Gallery% 10 Achievement% 8 Wizard Run 0 Options --------- Layout 1 ASCII 0 Keyboard 0 Movement Mouse Keybinds 0 Fullscreen 1 Font 24/Smallcaps Map View 50x35 Zoom Use 0% Tactical HUD 0 Map Filters NONE Filters NONE Steam 1 RUN: 9823dffd-caae-499d-ad21-007e9bbf0819